bitfinex-derivatives/quotes_SOLF0:USTF0_20250114
["timestamp","ask_amount","ask_price","bid_price","bid_amount"]
[1736850900281,7.81418637,188.04,187.97,7.81418637]
[1736850900771,7.81418637,188.02,187.97,7.81418637]
[1736850900974,2.6601,188.01,187.97,10.47468637]
[1736850901174,7.81418637,188.02,187.96,7.81418637]
[1736850901375,7.81418637,188.0,187.91,1.6092]
[1736850901575,2.6606,187.98,187.94,10.47518637]
[1736850901874,7.81418637,188.0,187.94,2.661]
[1736850902073,7.81418637,188.0,187.89,6.51656243]
[1736850902378,7.81418637,187.98,187.93,7.81418637]
[1736850902572,2.6609,187.96,187.93,7.81418637]
[1736850903268,2.6609,187.96,187.92,2.6612]
[1736850903475,7.81418637,187.96,187.91,7.81418637]
[1736850903881,2.6614,187.92,187.89,4.88536243]
[1736850904073,7.81418637,187.92,187.84,7.38232588]
[1736850904381,7.81418637,187.88,187.84,15.19651225]
[1736850905178,3.2517,187.91,187.84,7.38232588]
[1736850905381,7.81418637,187.88,187.84,7.38232588]
[1736850905678,7.81418637,187.88,187.83,7.81418637]
[1736850906177,10.47618637,187.88,187.83,7.81418637]
[1736850906581,2.662,187.88,187.83,7.81418637]
[1736850907377,2.662,187.88,187.82,2.6627]
[1736850907583,3.2517,187.91,187.82,2.6627]
[1736850908182,2.662,187.88,187.83,2.6626]
[1736850908477,182.7844666,188.12,187.84,12.24752457]
[1736850908678,22.72242457,187.98,187.87,12.24752457]
[1736850908881,2.6613,187.93,187.87,14.90952457]
[1736850909177,22.72242457,187.98,187.87,14.90952457]
[1736850909378,2.6614,187.92,187.87,14.90952457]
[1736850909977,2.6614,187.92,187.88,2.6619]
[1736850910283,2.6614,187.92,187.87,12.24752457]
[1736850911076,2.6615,187.91,187.84,12.24752457]
[1736850912083,12.24752457,187.95,187.84,12.24752457]
[1736850912275,2.6613,187.92,187.84,12.24752457]
[1736850912480,10.4749,187.98,187.79,3.1957]
[1736850912481,17.08242457,187.98,187.87,12.24752457]
[1736850912685,17.08242457,187.98,187.9,2.6615]
[1736850912976,2.661,187.95,187.9,2.6615]
[1736850913172,17.08242457,187.98,187.9,2.6615]
[1736850913378,2.661,187.95,187.9,2.6615]
[1736850913577,17.08242457,187.98,187.9,2.6615]
[1736850913783,4.8349,187.98,187.9,12.24752457]
[1736850914284,4.8349,187.98,187.87,12.24752457]
[1736850914483,2.661,187.94,187.87,12.24752457]
[1736850914888,2.661,187.94,187.89,2.6616]
[1736850915087,2.6612,187.93,187.89,2.6616]
[1736850915484,2.6614,187.92,187.87,2.6619]
[1736850915782,12.24752457,187.95,187.87,2.6619]
[1736850915983,12.24752457,187.95,187.88,2.6619]
[1736850916377,2.6612,187.93,187.84,12.24752457]
[1736850916687,4.8349,187.98,187.91,2.6614]
[1736850916688,17.08242457,187.98,187.91,2.6614]
[1736850916877,2.661,187.95,187.91,2.6614]
[1736850917078,17.08242457,187.98,187.91,2.6614]
[1736850917279,17.08242457,187.98,187.9,2.6616]
[1736850918389,17.08242457,187.98,187.87,12.24752457]
[1736850918682,17.08242457,187.98,187.89,2.6617]
[1736850918989,2.6608,187.96,187.87,12.24752457]
[1736850919387,17.08242457,187.98,187.9,2.6615]
[1736850919688,2.661,187.95,187.9,2.6615]
[1736850919884,2.661,187.95,187.91,2.6614]
[1736850921492,12.24752457,188.01,187.9,12.24752457]
[1736850921885,12.24752457,188.01,187.91,1.5699]
[1736850922089,2.6605,187.98,187.94,2.661]
[1736850922389,12.24752457,188.01,187.91,1.5699]
[1736850922591,12.24752457,188.01,187.89,13.88032457]
[1736850922791,12.24752457,188.01,187.92,2.6613]
[1736850923291,2.6607,187.97,187.93,2.6611]
[1736850924592,2.661,187.95,187.89,12.24752457]
[1736850925389,2.661,187.95,187.91,2.6615]
[1736850926493,2.6611,187.94,187.91,2.6615]
[1736850927493,2.6611,187.94,187.9,2.6616]
[1736850927996,12.24752457,188.01,187.92,12.24752457]
[1736850928294,2.6605,187.98,187.92,12.24752457]
[1736850928492,12.24752457,188.01,187.92,12.24752457]
[1736850928891,12.24752457,188.01,187.94,2.661]
[1736850930098,2.6606,187.97,187.94,2.661]
[1736850930487,2.6606,187.97,187.93,2.6611]
[1736850931094,2.6606,187.97,187.94,2.661]
[1736850931599,12.24752457,188.01,187.92,12.24752457]
[1736850931796,2.6608,187.96,187.92,2.6612]
[1736850932197,12.24752457,188.01,187.92,2.6612]
[1736850932495,12.24752457,188.01,187.91,2.6614]
[1736850932698,12.24752457,188.01,187.89,12.24752457]
[1736850933199,12.24752457,188.01,187.92,2.6613]
[1736850934094,2.6609,187.95,187.92,2.6613]
[1736850934593,12.24752457,188.01,187.92,2.6613]
[1736850935397,2.6608,187.96,187.92,10.49171696]
[1736850935797,5.64,188.04,187.94,7.83041696]
[1736850935998,2.6603,188.0,187.96,7.83041696]
[1736850936401,7.83041696,188.02,187.96,7.83041696]
[1736850936595,3.1288,188.05,187.98,7.83041696]
[1736850936795,7.83041696,188.05,188.0,7.83041696]
[1736850936992,7.83041696,188.05,188.01,2.66]
[1736850937192,1.6413,188.1,188.02,7.83041696]
[1736850937394,1.6413,188.1,188.0,12.22092962]
[1736850937597,2.659,188.09,188.04,2.6596]
[1736850937802,5.64,188.11,188.04,2.6596]
[1736850938213,2.6591,188.08,188.03,2.6597]
[1736850938406,2.6591,188.08,188.01,3.2472]
[1736850939105,2.6586,188.11,188.06,2.6593]
[1736850939305,1.6126,188.12,188.01,4.9465]
[1736850940114,2.6589,188.09,188.04,2.6595]
[1736850941412,2.659,188.09,188.03,2.6597]
[1736850941810,2.6591,188.08,188.03,2.6597]
[1736850942010,12.22092962,188.11,188.03,2.6597]
[1736850942209,12.22092962,188.11,188.01,4.9465]
[1736850942406,12.22092962,188.11,188.01,3.2472]
[1736850942713,12.22092962,188.08,188.01,1.6407]
[1736850943113,2.6595,188.05,188.0,2.6601]
[1736850943409,2.6595,188.05,187.97,12.22092962]
[1736850944315,2.6593,188.06,187.97,12.22092962]
[1736850945114,2.6593,188.06,188.02,2.6598]
[1736850946916,2.6593,188.07,188.02,2.6598]
[1736850947115,12.22092962,188.08,188.02,2.6598]
[1736850948217,2.6595,188.06,188.02,2.6598]
[1736850948913,1.6126,188.12,188.03,2.6596]
[1736850949119,13.83352962,188.12,188.03,12.22092962]
[1736850950119,2.659,188.09,188.05,2.6595]
[1736850950922,2.6591,188.08,188.04,2.6596]
[1736850951819,13.83352962,188.12,188.04,2.6596]
[1736850952111,13.83352962,188.12,188.0,12.22092962]
[1736850952813,2.6594,188.06,188.0,12.22092962]
[1736850953020,13.83352962,188.12,188.0,12.22092962]
[1736850953220,2.6593,188.07,188.03,2.6596]
[1736850954714,2.6591,188.08,188.04,2.6596]
[1736850956819,13.86222962,188.15,188.03,12.22092962]
[1736850958025,2.6588,188.11,188.03,12.22092962]
[1736850958226,2.6588,188.11,188.06,12.22092962]
[1736850958620,2.6592,188.08,188.03,12.22092962]
[1736850959019,2.6592,188.08,188.04,2.6595]
[1736850959525,2.6592,188.08,188.05,7.82038897]
[1736850960020,7.82038897,188.1,188.05,7.82038897]
[1736850960224,2.6592,188.07,188.05,7.82038897]
[1736850960924,7.82038897,188.12,188.05,7.82038897]
[1736850961124,7.82038897,188.14,188.08,7.82038897]
[1736850961527,2.6585,188.13,188.08,10.47938897]
[1736850961824,7.82038897,188.14,188.08,7.82038897]
[1736850963020,2.6588,188.11,188.07,2.6592]
[1736850963224,7.82038897,188.1,188.02,1.6139]
[1736850963420,7.82038897,188.08,188.04,7.82038897]
[1736850964124,2.6592,188.07,188.04,7.82038897]
[1736850964330,7.82038897,188.08,188.04,7.82038897]
[1736850964826,2.6593,188.07,188.04,7.82038897]
[1736850965427,2.6593,188.07,188.03,2.6598]
[1736850967129,12.22231833,188.11,188.03,2.6598]
[1736850967834,2.6595,188.06,188.03,2.6598]
[1736850968327,12.22231833,188.11,188.01,3.275]
[1736850968632,12.22231833,188.11,188.02,2.6598]
[1736850969137,2.6595,188.06,188.02,2.6598]
[1736850970633,2.6595,188.05,188.02,2.6598]
[1736850973533,2.6594,188.06,188.03,2.6598]
[1736850974240,12.22231833,188.11,188.01,3.275]
[1736850974241,2.6592,188.08,188.05,2.6594]
[1736850974439,12.22231833,188.14,188.01,3.275]
[1736850974640,12.22231833,188.11,188.0,12.22231833]
[1736850974841,1.5578,188.1,188.0,12.22231833]
[1736850975542,1.5578,188.1,188.02,2.6599]
[1736850976240,2.6595,188.06,188.02,2.6599]
[1736850977238,2.6595,188.06,188.0,12.22231833]
[1736850977439,2.6595,188.06,188.03,2.6597]
[1736850979647,2.6592,188.07,188.0,12.22231833]
[1736850980246,2.6592,188.07,188.04,2.6596]
[1736850980840,2.6592,188.07,188.05,2.6595]
[1736850981049,2.659,188.09,188.03,12.22231833]
[1736850981239,12.22231833,188.14,188.03,12.22231833]
[1736850981444,1.6413,188.15,188.06,12.22231833]
[1736850981643,2.6585,188.12,188.06,12.22231833]
[1736850983245,2.6585,188.12,188.08,2.659]
[1736850986245,1.6413,188.15,188.01,19.60464421]
[1736850986246,12.22231833,188.13,188.01,19.60464421]
[1736850986447,12.22231833,188.1,188.01,7.38232588]
[1736850987149,2.6596,188.05,188.01,2.66]
[1736850987354,7.82437694,188.06,188.01,2.66]
[1736850987851,2.6596,188.05,188.01,2.66]
[1736850988145,2.6596,188.05,188.0,7.82437694]
[1736850988350,2.6596,188.05,188.01,2.66]
[1736850989247,7.82437694,188.08,188.02,7.82437694]
[1736850989454,2.6594,188.06,188.02,10.48417694]
[1736850990351,2.6594,188.06,188.03,2.6598]
[1736850991356,2.6594,188.06,188.02,7.82437694]
[1736850991545,2.6594,188.06,188.02,10.48417694]
[1736850991749,2.6594,188.06,188.02,7.82437694]
[1736850992657,2.6594,188.06,188.03,2.6597]
[1736850994956,7.82437694,188.1,188.04,7.82437694]
[1736850995255,5.64,188.11,188.07,7.82437694]
[1736850996154,2.6589,188.1,188.07,10.48347694]
[1736850997051,2.6589,188.1,187.98,34.85020354]
[1736850997052,7.82437694,188.13,188.09,7.82437694]
[1736850997456,9.46567694,188.15,188.09,7.82437694]
[1736850998050,2.6584,188.13,188.1,2.6588]
[1736850998252,7.82437694,188.13,188.07,7.82437694]
[1736850998452,7.82437694,188.11,188.05,7.82437694]
[1736850998656,2.6589,188.1,188.06,2.6593]
[1736850999356,2.6589,188.1,188.07,2.6592]
[1736851000458,2.6589,188.09,188.05,10.48377694]
[1736851000958,2.6591,188.08,188.05,10.48377694]
[1736851001353,7.82437694,188.09,188.05,7.82437694]
[1736851001557,10.48367694,188.07,188.04,2.6596]
[1736851001758,7.82437694,188.05,187.97,29.52930354]
[1736851002060,2.6597,188.04,188.01,2.6599]
[1736851002358,7.82437694,188.03,187.99,7.82437694]
[1736851002560,2.66,188.02,187.99,2.6603]
[1736851003259,7.82437694,188.03,187.97,7.82437694]
[1736851003458,5.64,188.11,188.01,2.66]
[1736851003459,7.82437694,188.05,188.01,2.66]
[1736851003754,7.82437694,188.05,187.99,7.82437694]
[1736851003959,7.82437694,188.03,187.99,7.82437694]
[1736851004160,2.6599,188.02,187.99,7.82437694]
[1736851004760,10.48417694,188.03,187.99,10.48467694]
[1736851005259,2.6598,188.03,187.99,10.48467694]
[1736851005660,2.6598,188.03,188.0,2.6602]
[1736851006161,2.6597,188.04,188.01,7.82437694]
[1736851006361,7.82437694,188.06,188.02,2.6599]
[1736851006858,10.48387694,188.06,188.02,2.6599]
[1736851007563,2.6595,188.06,188.02,2.6599]
[1736851007965,182.873,188.14,188.03,7.82437694]
[1736851008164,7.82437694,188.1,188.03,7.82437694]
[1736851008663,2.6592,188.07,188.03,10.48407694]
[1736851009061,7.82437694,188.1,188.03,7.82437694]
[1736851009268,2.6592,188.08,188.04,2.6595]
[1736851009467,7.82437694,188.1,188.04,2.6595]
[1736851009668,2.6592,188.07,188.04,2.61968217]
[1736851010173,2.6592,188.07,188.03,10.48407694]
[1736851012176,7.82437694,188.1,188.06,2.6593]
[1736851012177,2.6589,188.1,188.06,2.6593]
[1736851012376,2.6589,188.1,188.07,7.82437694]
[1736851012573,13.46437694,188.12,188.07,7.82437694]
[1736851012774,2.659,188.09,188.07,7.82437694]
[1736851013274,2.659,188.09,188.05,10.48377694]
[1736851013575,5.64,188.12,188.05,10.48377694]
[1736851013778,7.82437694,188.1,188.05,10.48377694]
[1736851014171,2.659,188.09,188.05,10.48377694]
[1736851016778,2.659,188.09,188.06,2.6593]
[1736851017774,13.46437694,188.12,188.07,7.82437694]
[1736851018079,7.82437694,188.12,188.07,7.82437694]
[1736851019170,7.82437694,188.12,188.05,7.82437694]
[1736851019681,2.6588,188.1,188.06,2.6593]
[1736851020181,2.6588,188.1,188.07,2.6592]
[1736851021884,2.6588,188.1,188.07,10.48357694]
[1736851022084,2.6588,188.1,188.07,7.82437694]
[1736851023985,7.82437694,188.12,188.07,7.82437694]
[1736851024185,1.7097,188.15,188.09,7.82437694]
[1736851024383,11.07727694,188.16,188.09,7.82437694]
[1736851024583,7.82437694,188.14,188.07,7.82437694]
[1736851025078,7.82437694,188.12,188.05,7.82437694]
[1736851025279,7.82437694,188.1,187.99,13.02232588]
[1736851025484,7.82437694,188.12,188.05,7.82437694]
[1736851025682,7.82437694,188.14,188.09,7.82437694]
[1736851026087,2.6584,188.13,188.09,10.48327694]
[1736851026288,7.82437694,188.14,188.09,7.82437694]
[1736851026589,3.2529,188.16,188.05,7.82437694]
[1736851026590,7.82437694,188.12,188.05,7.82437694]
[1736851026885,2.6589,188.1,188.05,7.82437694]
[1736851027083,7.82437694,188.14,188.09,7.82437694]
[1736851027285,2.6584,188.13,188.09,10.48317694]
[1736851028491,2.6584,188.13,188.09,7.82437694]
[1736851028787,9.52127694,188.18,188.11,7.82437694]
[1736851029186,2.6582,188.15,188.11,10.48297694]
[1736851029388,7.82437694,188.16,188.11,7.82437694]
[1736851030784,7.82437694,188.16,188.09,7.82437694]
[1736851030987,7.82437694,188.14,188.09,7.82437694]
[1736851031378,2.6586,188.11,188.07,10.48357694]
[1736851032886,2.659,188.09,188.05,10.48377694]
[1736851033992,2.6591,188.08,188.05,10.48377694]
[1736851035194,2.6591,188.08,188.06,2.6593]
[1736851037194,7.82437694,188.12,188.06,2.6593]
[1736851037396,2.6589,188.09,188.07,7.82437694]
[1736851037695,2.6589,188.09,188.07,10.48357694]
[1736851039692,2.6589,188.09,188.07,7.82437694]
[1736851040687,2.6589,188.09,188.07,10.48357694]
[1736851040893,2.6588,188.1,188.07,10.48357694]
[1736851041295,4.9043,188.18,188.09,7.82437694]
[1736851041589,2.6586,188.12,188.09,7.82437694]
[1736851043399,2.6586,188.12,188.09,10.48317694]
[1736851044494,2.6588,188.1,188.09,7.82437694]
[1736851044695,2.6588,188.1,188.03,4.8736]
[1736851044891,2.6588,188.1,188.07,7.82437694]
[1736851045696,2.6587,188.11,188.07,10.48347694]
[1736851046196,2.6589,188.1,188.06,2.6593]
[1736851046394,7.82437694,188.11,188.03,1.5955]
[1736851046595,7.82437694,188.11,188.04,7.82437694]
[1736851046791,7.82437694,188.07,188.0,15.20670282]
[1736851047104,7.82437694,188.03,188.0,7.38232588]
[1736851047401,2.6599,188.02,188.0,7.38232588]
[1736851047615,2.6599,188.02,187.97,10.48497694]
[1736851048106,7.82437694,188.03,187.97,10.48497694]
[1736851048295,2.6601,188.01,187.97,10.48497694]
[1736851049296,2.6599,188.02,187.99,7.82437694]
[1736851050102,2.6599,188.02,187.99,10.48467694]
[1736851050293,2.6599,188.02,187.99,7.82437694]
[1736851051902,7.82437694,188.07,188.01,7.82437694]
[1736851052803,8.7945,188.09,188.03,7.82437694]
[1736851052993,16.61887694,188.09,188.03,7.82437694]
[1736851054393,2.6595,188.06,188.03,7.82437694]
[1736851054793,16.61887694,188.09,188.03,7.82437694]
[1736851055106,2.6592,188.08,188.03,7.82437694]
[1736851055308,16.61887694,188.09,188.03,7.82437694]
[1736851055804,2.6595,188.05,188.03,7.82437694]
[1736851056411,2.6594,188.06,188.03,7.82437694]
[1736851056608,1.6851,188.1,188.05,7.82437694]
[1736851057109,1.6851,188.1,188.07,7.82437694]
[1736851057303,5.62,188.12,188.07,7.82437694]
[1736851057714,2.6589,188.09,188.07,7.82437694]
[1736851057907,5.62,188.12,188.07,7.82437694]
[1736851058103,7.82437694,188.11,188.07,7.82437694]
[1736851058303,7.82437694,188.11,188.05,7.82437694]
[1736851058499,7.82437694,188.11,188.05,10.48387694]
[1736851058808,7.82437694,188.11,188.05,7.82437694]
[1736851059406,7.82437694,188.09,188.03,7.82437694]
[1736851060809,2.6595,188.05,188.03,7.82437694]
[1736851061207,7.82437694,188.09,188.03,7.82437694]
[1736851063014,2.6593,188.06,188.03,7.82437694]
[1736851068609,2.6593,188.06,188.02,10.48427694]
[1736851069217,7.82437694,188.07,188.0,7.82437694]
[1736851069417,7.82437694,188.05,187.94,99.54]
[1736851069723,2.66,188.02,187.99,7.82437694]
[1736851070622,2.6601,188.01,187.98,2.6604]
[1736851070811,7.82437694,188.01,187.94,99.54]
[1736851071014,7.82437694,187.99,187.94,107.36437694]
[1736851071221,10.48487694,187.99,187.94,107.36437694]
[1736851071423,2.6605,187.99,187.95,2.6608]
[1736851071616,2.6605,187.99,187.96,7.82437694]
[1736851071822,2.6605,187.99,187.96,10.48507694]
[1736851077627,7.82437694,188.03,187.96,7.82437694]
[1736851077930,7.82437694,188.03,187.98,7.82437694]
[1736851080325,1.6325,188.04,187.98,10.48477694]
[1736851080825,2.6601,188.01,187.98,10.48477694]
[1736851081331,5.62,188.05,188.0,7.82437694]
[1736851081627,2.6598,188.03,188.0,10.48457694]
[1736851081823,2.6598,188.03,188.0,7.82437694]
[1736851082219,7.82437694,188.04,188.0,7.82437694]
[1736851082419,2.66,188.02,187.98,7.82437694]
[1736851082822,2.6602,188.0,187.98,7.82437694]
[1736851085837,2.6602,188.0,187.98,10.48487694]
[1736851086031,2.6601,188.01,187.98,7.82437694]
[1736851086232,5.62,188.07,188.0,7.82437694]
[1736851086233,7.82437694,188.06,188.0,7.82437694]
[1736851086639,2.6599,188.03,188.0,7.82437694]
[1736851087234,2.6599,188.03,188.0,10.48457694]
[1736851087436,7.82437694,188.06,188.0,7.82437694]
[1736851087640,5.62,188.08,188.0,7.82437694]
[1736851087839,7.82437694,188.06,188.0,7.82437694]
[1736851089238,2.6598,188.03,188.0,10.48447694]
[1736851089642,2.6597,188.04,188.01,2.66]
[1736851090041,2.6597,188.04,188.0,7.82437694]
[1736851090343,2.6597,188.04,188.0,10.48457694]
[1736851090639,7.82437694,188.06,188.0,10.48457694]
[1736851090840,2.6598,188.03,188.0,10.48457694]
[1736851092045,2.6594,188.06,188.02,10.48417694]
[1736851093045,7.82437694,188.08,188.03,2.6598]
[1736851093241,45.45623643,188.1,188.06,7.82437694]
[1736851093437,7.82437694,188.13,188.08,7.82437694]
[1736851093647,2.6588,188.1,188.08,7.82437694]
[1736851093846,7.82437694,188.13,188.06,7.82437694]
[1736851094047,7.82437694,188.11,188.06,7.82437694]
[1736851094546,2.6588,188.1,188.06,7.82437694]
[1736851094747,7.82437694,188.11,188.06,7.82437694]
[1736851096046,10.48337694,188.09,188.05,2.6594]
[1736851096238,7.82437694,188.07,188.02,7.82437694]
[1736851096952,10.48367694,188.07,188.03,2.6598]
[1736851097539,2.6589,188.1,188.05,2.6594]
[1736851097736,13.44437694,188.14,188.08,7.82437694]
[1736851098140,2.6588,188.1,188.08,7.82437694]
[1736851100442,2.6588,188.1,188.06,10.48367694]
[1736851100745,7.82437694,188.1,188.04,7.82437694]
[1736851102143,2.6591,188.08,188.04,10.48397694]
[1736851103055,2.6591,188.08,188.05,2.6595]
[1736851103847,2.6589,188.1,188.06,10.48357694]
[1736851104052,7.82437694,188.12,188.06,10.48357694]
[1736851104453,2.6588,188.1,188.06,10.48357694]
[1736851105654,2.6588,188.1,188.07,2.6591]
[1736851106052,2.6587,188.11,188.07,2.6591]
[1736851106657,7.82437694,188.12,188.07,2.6591]
[1736851106853,44.43532624,188.17,188.1,7.82437694]
[1736851107152,7.82437694,188.16,188.1,7.82437694]
[1736851107953,2.6584,188.13,188.1,7.82437694]
[1736851109557,5.62,188.19,188.09,2.6589]
[1736851109756,7.82437694,188.15,188.09,10.48327694]
[1736851110155,2.6585,188.12,188.09,7.82437694]
[1736851112054,2.6584,188.13,188.09,10.48327694]
[1736851112758,2.6585,188.12,188.09,10.48327694]
[1736851113158,2.6585,188.12,188.09,2.6589]
[1736851113555,2.6585,188.12,188.08,2.6591]
[1736851113959,7.82437694,188.13,188.07,7.82437694]
[1736851114261,7.82437694,188.09,188.0,1.6417]
[1736851114459,7.82437694,188.07,188.01,7.82437694]
[1736851114657,10.48367694,188.07,188.03,2.6597]
[1736851115053,2.6593,188.07,188.03,2.6597]
[1736851115257,2.6593,188.07,188.04,2.6596]
[1736851119568,7.82437694,188.1,188.04,2.6596]
[1736851119767,2.6591,188.08,188.03,7.82437694]
[1736851120168,2.6589,188.1,188.05,7.82437694]
[1736851121073,2.6589,188.1,188.06,2.6593]
[1736851121467,2.659,188.09,188.06,2.6593]
[1736851121766,2.659,188.09,188.05,10.48377694]
[1736851122171,7.82437694,188.12,188.05,10.48377694]
[1736851122371,2.6591,188.08,188.05,10.48377694]
[1736851122873,2.6591,188.08,188.06,2.6593]
[1736851126476,2.6591,188.08,188.05,7.82437694]
[1736851126774,2.6591,188.08,188.06,2.6593]
[1736851127372,5.62,188.15,188.0,1.6417]
[1736851127581,2.6594,188.06,188.03,2.6597]
[1736851129382,2.6594,188.06,188.04,2.6596]
[1736851132481,2.6593,188.07,188.04,10.48397694]
[1736851132775,2.6593,188.07,188.04,7.82437694]
[1736851132979,2.6593,188.07,188.05,2.6595]
[1736851137380,2.6589,188.1,188.07,2.6591]
[1736851137584,7.82437694,188.15,188.08,7.82437694]
[1736851138279,7.82437694,188.15,188.08,10.48337694]
[1736851138479,7.82437694,188.13,188.08,10.48337694]
[1736851140085,2.6586,188.12,188.08,10.48337694]
[1736851141682,2.6587,188.11,188.08,2.659]
[1736851145186,2.6587,188.11,188.08,10.48337694]
[1736851147995,7.3197,188.16,188.11,2.6586]
[1736851147996,2.6583,188.14,188.11,2.6586]
[1736851148183,9.45437694,188.17,188.1,7.82437694]
[1736851149192,2.6581,188.15,188.12,2.6584]
[1736851151400,2.6581,188.15,188.11,2.6586]
[1736851153690,9.45437694,188.17,188.11,2.6586]
[1736851153894,2.6582,188.14,188.11,2.6586]
[1736851157295,2.6582,188.14,188.1,7.82437694]
[1736851157296,2.6585,188.12,188.09,2.6588]
[1736851157597,7.82437694,188.13,188.07,7.82437694]
[1736851158195,2.6585,188.12,188.09,2.6589]
[1736851158393,7.82437694,188.13,188.07,7.82437694]
[1736851158591,7.82437694,188.11,188.07,7.82437694]
[1736851158795,10.48307694,188.11,188.08,2.659]
[1736851159908,2.6587,188.11,188.08,2.659]
[1736851162308,7.82437694,188.13,188.08,2.659]
[1736851162506,2.6588,188.1,188.08,2.659]
[1736851165009,2.6588,188.1,188.07,7.82437694]
[1736851165010,2.6587,188.11,188.09,2.6589]
[1736851165201,2.6587,188.11,188.09,10.48327694]
[1736851166406,1.6522,188.16,188.09,7.82437694]
[1736851166612,2.6584,188.13,188.11,7.82437694]
[1736851168918,2.6584,188.13,188.1,2.6588]
[1736851172218,2.6584,188.13,188.11,7.82437694]
[1736851172920,48.59713808,188.2,188.11,7.82437694]
[1736851173126,2.6581,188.16,188.12,2.6585]
[1736851174720,48.59713808,188.2,188.15,7.82437694]
[1736851174920,3.2286,188.24,188.17,7.82437694]
[1736851175122,7.82437694,188.23,188.17,7.82437694]
[1736851175718,2.6572,188.22,188.18,2.6576]
[1736851176119,7.82437694,188.23,188.18,2.6576]
[1736851176922,2.6571,188.22,188.18,2.6576]
[1736851177922,2.6571,188.22,188.19,7.82437694]
[1736851179630,1.6444,188.27,188.19,7.82437694]
[1736851179929,2.6569,188.24,188.2,2.6573]
[1736851183533,2.6569,188.23,188.2,2.6573]
[1736851183727,7.82437694,188.22,188.17,2.6577]
[1736851183924,7.82437694,188.2,188.12,1.5863]
[1736851184123,7.82437694,188.2,188.13,7.82437694]
[1736851184318,7.82437694,188.2,188.13,10.48267694]
[1736851184532,7.82437694,188.16,188.11,9.37097694]
[1736851184725,7.82437694,188.16,188.11,7.82437694]
[1736851185034,2.6582,188.15,188.12,2.6584]
[1736851185328,7.82437694,188.16,188.09,7.82437694]
[1736851186230,7.82437694,188.12,188.08,27.35929302]
[1736851186429,7.82437694,188.1,188.01,29.52930354]
[1736851186632,7.82437694,188.1,188.04,7.82437694]
[1736851186822,2.6592,188.08,188.04,10.48397694]
[1736851187529,2.6589,188.09,188.05,2.6595]
[1736851188919,2.6591,188.08,188.04,10.48397694]
[1736851189727,10.48347694,188.08,188.04,2.6596]
[1736851192828,2.6591,188.08,188.04,10.48397694]
[1736851197842,2.6591,188.08,188.01,1.5933]
[1736851197843,4.7766,188.15,188.06,7.82437694]
[1736851198144,2.6587,188.11,188.06,7.82437694]
[1736851198335,7.82437694,188.13,188.06,7.82437694]
[1736851198842,2.6587,188.11,188.01,1.5933]
[1736851199044,2.6587,188.11,188.07,7.82437694]
[1736851199738,7.82437694,188.13,188.07,7.82437694]
[1736851199945,2.6585,188.12,188.09,7.82437694]
[1736851200447,11.12087694,188.17,188.11,7.82437694]
[1736851200646,7.82437694,188.19,188.13,7.82437694]
[1736851201140,2.6581,188.16,188.13,7.82437694]
[1736851202645,7.82437694,188.19,188.13,7.82437694]
[1736851202847,2.6581,188.15,188.13,7.82437694]
[1736851203646,7.82437694,188.15,188.01,1.5933]
[1736851203847,7.82437694,188.11,188.05,7.82437694]
[1736851205144,2.659,188.09,188.05,10.48377694]
[1736851205546,2.659,188.09,188.05,7.82437694]
[1736851205943,2.6588,188.1,188.06,2.6593]
[1736851209749,2.6588,188.1,188.07,7.82437694]
[1736851211349,2.6588,188.1,188.07,10.48357694]
[1736851211751,7.82437694,188.16,188.09,7.82437694]
[1736851212047,7.82437694,188.16,188.11,10.48297694]
[1736851212248,7.82437694,188.16,188.11,7.82437694]
[1736851212249,2.6582,188.14,188.11,7.82437694]
[1736851212443,2.6582,188.14,188.09,7.82437694]
[1736851212640,7.82437694,188.16,188.09,7.82437694]
[1736851212841,7.82437694,188.12,188.07,7.82437694]
[1736851213551,2.6589,188.1,188.07,7.82437694]
[1736851215653,2.6589,188.1,188.06,2.6593]
[1736851215856,10.48327694,188.1,188.06,2.6593]
[1736851217554,7.82437694,188.1,188.05,7.82437694]
[1736851217750,2.6591,188.08,188.05,2.6595]
[1736851221556,2.6591,188.08,188.06,2.6593]
[1736851223053,2.6591,188.08,188.06,10.48367694]
[1736851226464,2.6591,188.08,188.05,7.82437694]